Cogmind - Beta 13 @@@ ROGUE MODE // 2024.05.31 @ 22:18:51 Player: Bace Troncons Result: Destroyed by S9-B36(R) with Subdweller Beam Cannon Performance ------------- Evolutions (0) 0 Regions Visited (2) 400 Robots Destroyed (28) 140 Value Destroyed (718) 718 Prototype IDs (0) 0 Alien Tech Used (0) 0 Bonus (0) 0 TOTAL SCORE: 1258 Bonus ------- None Cogmind --------- Core Integrity 0/250 Matter 223/300 Energy 125/125 System Corruption 2% Temperature Cool (9) Movement Treading (160) Location -10/Subcaves Parts ------- > --- POWER (1) -------- Light Ion Engine > --- PROPULSION (2) --- Light Treads Spiked Treads > --- UTILITY (2) ------ Sensor Array Improved Terrain Scanner > --- WEAPON (2) ------- Battle Rifle Battle Rifle > --- INVENTORY (5) ---- Light Treads Mining Claw Peak State ------------ > --- POWER ------------ Subdweller Power Source > --- PROPULSION ------- Light Treads Light Treads > --- UTILITY ---------- Sensor Array Improved Terrain Scanner > --- WEAPON ----------- Battle Rifle Battle Rifle > --- INVENTORY -------- Light Ion Engine Light Treads Mining Claw [Rating: 12] Favorites ----------- Power Light Ion Engine Engine Light Ion Engine Power Core Light Nuclear Core Propulsion Light Treads Treads Light Treads Leg Aluminum Leg Utility Improved Terrain Scanner Device Improved Terrain Scanner Storage Small Storage Unit Processor Signal Interpreter Protection Scrap Shield Weapon Assault Rifle Ballistic Gun Assault Rifle Slashing Weapon Mining Claw Build | -11 -10 -10 ------- Run | Yrd Mat Sub Slots Evolved . | . . . Power . | . . . Propulsion . | . . . Utility . | . . . Weapon . | . . . Parts Attached 39 | 7 21 11 Power 8 | 1 5 2 Engine 6 | 1 3 2 Core 2 | . 2 . Reactor . | . . . Propulsion 8 | 2 5 1 Treads 6 | 2 3 1 Leg 2 | . 2 . Wheel . | . . . Hover . | . . . Flight . | . . . Utility 9 | 2 4 3 Device 6 | 1 3 2 Storage 1 | 1 . . Processor 1 | . 1 . Hackware . | . . . Protection 1 | . . 1 Artifact . | . . . Weapon 14 | 2 7 5 Energy Gun . | . . . Energy Cannon . | . . . Ballistic Gun 11 | 2 5 4 Ballistic Cannon . | . . . Launcher . | . . . Special Weapon . | . . . Impact Weapon . | . . . Slashing Weapon 3 | . 2 1 Piercing Weapon . | . . . Special Melee Weapon . | . . . Unidentified Prototypes . | . . . Parts Lost 4 | . 2 2 Power 1 | . . 1 Propulsion 1 | . 1 . Utility 2 | . 1 1 Weapon . | . . . Highest Loss Streak 2 | . 2 2 To Critical Strikes . | . . . Average Slot Usage (%) 92 | . 92 92 Engine 13 | . 13 13 Treads 26 | . 25 28 Leg 1 | . 2 . Device 16 | . 17 14 Processor 2 | . 3 1 Protection 1 | . . 5 Ballistic Gun 25 | . 27 23 Slashing Weapon 2 | . . 4 Naked Turns . | . . . Heaviest Build 25 | 14 10 25 Greatest Support 40 | 40 40 40 Greatest Overweight (x) . | . . . Average Overweight (x) . | . . . Largest Inventory Capacity 8 | 8 5 5 Average Capacity 5 | 7 5 5 Most Carried 5 | 5 5 5 Average Carried 4 | 3 4 4 Final Capacity 8 | 8 5 5 Final Carried 5 | 5 5 2 Class Distribution -------------------- 68% | Mutant 31% | Scavenger-Mutant Dominant Class ---------------- Mutant | -10/Materials Scavenger-Mutant | -10/Subcaves Resources | -11 -10 -10 ----------- Run | Yrd Mat Sub Matter Collected 1081 | 198 643 240 Remotely . | . . . Salvage Created 997 | 21 781 195 Parts 76 | 6 57 13 Haulers Intercepted 1 | . 1 . Recyclers Shooed 2 | . 2 . Parts Field Recycled . | . . . Retrieved Matter . | . . . Parts Self-Destructed 3 | . . 3 Prevented . | . . . Kills | -11 -10 -10 ------- Run | Yrd Mat Sub Combat Hostiles Destroyed 16 | . 11 5 Guns 16 | . 11 5 Classes Destroyed 8 | 1 6 1 Worker 3 | . 3 . Tunneler 2 | 1 1 . Hauler 1 | . 1 . Recycler 1 | . 1 . Operator 2 | . 2 . Watcher 3 | . 3 . Grunt 11 | . 11 . Subdweller 5 | . . 5 Best Kill Streak 3 | 1 3 2 Combat Bots Only 2 | . 2 2 Max Kills in Single Turn 2 | 1 2 1 Gunslinging . | . . . Exploded . | . . . Melee . | . . . Uniques/NPCs Destroyed . | . . . Combat | -11 -10 -10 -------- Run | Yrd Mat Sub Hostile Shots Fired 95 | . 61 34 Missed 31 | . 22 9 Damage Taken 1159 | . 493 666 Core 253 | . 89 164 Absorbed by Shields . | . . . Core Remaining (%) 100 | 100 . . Volleys Fired 102 | 1 78 23 Largest 2 | 2 2 2 Hottest 50 | 40 40 50 Shots Fired 205 | 2 158 45 Gun 205 | 2 158 45 Cannon . | . . . Launcher . | . . . Special . | . . . Kinetic 205 | 2 158 45 Thermal . | . . . Explosive . | . . . Electromagnetic . | . . . Robot Hit Streak 13 | 1 12 13 Robot Miss Streak 4 | . 4 1 Penetration Max . | . . . Secondary Targets 2 | . 2 . Max Gunslinging Chain 1 | . 1 . Shots Hit Robots 144 | 1 107 36 Core Hits 58 | 1 44 13 Critical Kills . | . . . Critical Parts Destroyed 1 | . . 1 Critical Strikes 2 | . . 2 Destroy 2 | . . 2 Melee Attacks 12 | . 4 8 Impact . | . . . Slashing 12 | . 4 8 Piercing . | . . . Sneak Attacks 1 | . 1 . Combat Hostiles . | . . . Follow-up Attacks . | . . . Damage Inflicted 1841 | 11 1290 540 Guns 1779 | 11 1228 540 Cannons . | . . . Explosions . | . . . Melee 62 | . 62 . Ramming . | . . . Kinetic 1779 | 11 1228 540 Thermal . | . . . Explosive . | . . . Electromagnetic . | . . . Impact . | . . . Slashing 62 | . 62 . Piercing . | . . . Highest Corruption 2 | . 2 2 Average Corruption 1 | . 1 2 Corruption Purged . | . . . Corruption Blocked . | . . . Effects 34 | . 18 16 Message Errors 6 | . 4 2 Matter Fused 11 | . 7 4 Heat Flow Errors 6 | . 1 5 Energy Discharges 2 | . 1 1 Data Loss (minor) 4 | . 2 2 Data Loss (major) 2 | . 1 1 Misfires 2 | . 2 . Alerts 1 | . . 1 Overload Shots . | . . . Overflow Damage 22 | . 22 . Projectiles . | . . . Explosions . | . . . Melee 22 | . 22 . Knockbacks . | . . . Impact . | . . . Kinetic . | . . . Secondary . | . . . Self-Inflicted Damage . | . . . Shots . | . . . Rammed . | . . . Targets Rammed . | . . . Kicked . | . . . Crushed . | . . . Highest Temperature 209 | . 209 209 Average Temperature 42 | . 24 95 Received Heat Transfer 423 | . 273 150 Effects 1 | . . 1 Energy Bleed 1 | . . 1 Siege Activations . | . . . Robots Corrupted . | . . . Combat Hostiles . | . . . Parts Fried . | . . . Impact Corruptions . | . . . Robots Melted . | . . . Combat Hostiles . | . . . Parts Melted . | . . . Heat Transferred . | . . . Parts Sabotaged . | . . . Parts Stolen . | . . . Parts Stripped . | . . . Power Chain Reactions . | . . . Alert | -11 -10 -10 ------- Run | Yrd Mat Sub Peak Influence 256 | 5 256 . Initial 3 | . 3 . Average 66 | . 70 . Maximum Alert Level 1 | . 1 . Low Security (%) 96 | 100 96 . Level 1 3 | . 3 . Level 2 . | . . . Level 3 . | . . . Level 4 . | . . . Level 5 . | . . . High Security . | . . . Max Security . | . . . Squads Dispatched 4 | . 4 . Investigation 1 | . 1 . Extermination . | . . . Reinforcement 3 | . 3 . Assault . | . . . Garrison . | . . . Intercept . | . . . Searches Triggered . | . . . Construction Impeded . | . . . Haulers Reinforced . | . . . Active Scanning Responses . | . . . Cargo Convoy Interrupts . | . . . Stealth | -11 -10 -10 --------- Run | Yrd Mat Sub Distress Signals 5 | . 5 . Communications Jammed . | . . . Distress Signals . | . . . Times Spotted 28 | . 21 7 Peak Tracking Total 4 | . 4 2 Tactical Retreats 1 | . 1 . Traps | -11 -10 -10 ------- Run | Yrd Mat Sub Traps Triggered 3 | . 3 . Indirectly . | . . . Trap Hack Attempts . | . . . Triggered . | . . . Disarmed . | . . . Reprogrammed . | . . . Reused . | . . . Traps Extracted . | . . . Installed . | . . . Triggered . | . . . Machines | -11 -10 -10 ---------- Run | Yrd Mat Sub Machines Disabled . | . . . Max in Single Turn . | . . . Machines Repaired . | . . . Machines Dismantled . | . . . Machines Sabotaged . | . . . Overloaded Fab Kills . | . . . Hacking | -11 -10 -10 --------- Run | Yrd Mat Sub Machines Accessed 4 | . 3 1 Terminals 2 | . 2 . Fabricators . | . . . Repair Stations . | . . . Recycling Units 1 | . 1 . Scanalyzers . | . . . Garrison Access . | . . . Total Hacks 10 | . 8 2 Successful 7 | . 5 2 Failed 3 | . 3 . Catastrophic . | . . . Database Lockouts . | . . . Manual . | . . . Terminals 4 | . 4 . Fabricators . | . . . Repair Stations . | . . . Recycling Units 4 | . 4 . Scanalyzers . | . . . Garrison Access . | . . . Terminal Hacks 6 | . 4 2 Record 2 | . . 2 Emergency Access Points 1 | . 1 . Locate Traps 1 | . 1 . Hauler Manifests 1 | . 1 . Registered Components 1 | . 1 . Fabricator Hacks . | . . . Repair Station Hacks . | . . . Recycling Unit Hacks 1 | . 1 . Retrieve Components 1 | . 1 . Scanalyzer . | . . . Garrison Access Hacks . | . . . Unauthorized Hacks . | . . . Terminals . | . . . Fabricators . | . . . Repair Stations . | . . . Recycling Units . | . . . Scanalyzers . | . . . Garrison Access . | . . . Data Cores Recovered . | . . . Used . | . . . Hacking Detections 2 | . 2 . Full Trace Events . | . . . Feedback Events . | . . . Feedback Blocked . | . . . Robot Schematics Acquired . | . . . Robots Built . | . . . Authchips . | . . . Time . | . . . Total Robot Build Rating . | . . . Part Schematics Acquired . | . . . Parts Built . | . . . Authchips . | . . . Time . | . . . Total Part Build Rating . | . . . Parts Repaired . | . . . Time . | . . . Parts Recycled . | . . . Recycled Matter . | . . . Retrieved Matter . | . . . Retrieved Components 10 | . 10 . Parts Scanalyzed . | . . . Part Schematics Acquired . | . . . Parts Damaged . | . . . Bothacking | -11 -10 -10 ------------ Run | Yrd Mat Sub Used RIF Installer . | . . . Robots Hacked . | . . . Non-combat . | . . . Combat . | . . . Robot Hacks Applied . | . . . Relay Couplers Released . | . . . Fabnet Peak Effective % . | . . . Robots Rewired . | . . . Allies Hacked . | . . . Hacks Repelled . | . . . Allies | -11 -10 -10 -------- Run | Yrd Mat Sub Total Allies . | . . . Largest Group . | . . . Highest-Rated Group . | . . . Highest-Rated Ally . | . . . Total Orders . | . . . Ally Attacks . | . . . Total Damage . | . . . Kills . | . . . Allies Corrupted . | . . . Allies Melted . | . . . Intel | -11 -10 -10 ------- Run | Yrd Mat Sub Robot Analysis Total . | . . . Derelict Logs Recovered . | . . . Drone Launches . | . . . Drone Recoveries . | . . . Exploration | -11 -10 -10 ------------- Run | Yrd Mat Sub Turns Passed 2351 | 96 1444 811 Spaces Moved 912 | 52 445 415 Core 4 | 4 . . Treads 847 | 48 384 415 Legs 61 | . 61 . Wheels . | . . . Hover . | . . . Flight . | . . . Fastest Speed 50 | 50 120 160 Average Speed 156 | 151 154 160 Slowest Speed 160 | 160 160 160 Overloaded Moves . | . . . Propulsion Burnouts . | . . . Robots Hopped . | . . . Cave-ins Triggered . | . . . Exploration Rate (%) 41 | 4 89 32 Regions Visited 2 Branch Regions 1 Pre-discovered Areas . | . . . Known Exits Taken 1 | . 1 . Unknown Exits Taken 1 | 1 . . Scrap Searched 2 | . . 2 Spaces Dug . | . . . Terrain Destroyed . | . . . Melee . | . . . Projectile . | . . . AOE . | . . . Terrain Rammed . | . . . Walls Destroyed . | . . . Machines Disabled . | . . . Actions | -11 -10 -10 --------- Run | Yrd Mat Sub Total 1622 | 65 1050 507 Wait 522 | . 482 40 Move 910 | 51 444 415 Hop . | . . . Pick Up 11 | 6 5 . Fast Attach 15 | 6 5 4 Attach 7 | 1 3 3 Detach 3 | . . 3 Swap 17 | . 13 4 Drop 21 | . 16 5 Fire 102 | 1 78 23 Melee 12 | . 4 8 Ram . | . . . Kick . | . . . Crush . | . . . Escape Stasis . | . . . Rewire . | . . . Trap . | . . . Miscellaneous 2 | . . 2 Route ------- -11/Scrapyard -10/Materials (discovered 4 exits: [*Mat x2] / [*Min] / *Sub) -10/Subcaves (discovered 1 exit: [*Mat]) History --------- Turn | Location | Event 8 | -11/Scrapyard | Discovered new exit (range 14) 97 | -11/Scrapyard | Entered Materials 309 | -10/Materials | Build established: Mutant 364 | -10/Materials | Discovered new exit (range 12) 586 | -10/Materials | Discovered new exit (range 13) 677 | -10/Materials | Discovered new exit (range 15) 1504 | -10/Materials | Discovered new exit (range 4) 1513 | -10/Materials | Build established: Scavenger-Mutant 1539 | -10/Materials | Identified exit to Subcaves 1541 | -10/Materials | Entered Subcaves 1739 | -10/Subcaves | Core integrity fell below 50% 1779 | -10/Subcaves | Visited Clippyterm 1837 | -10/Subcaves | Discovered new exit (range 15) 1934 | -10/Subcaves | Build established: Mutant 2228 | -10/Subcaves | Shifting Twisted Machinery released Sub. Beam Cannon 2242 | -10/Subcaves | Shifting Twisted Machinery released Spk. Treads 2280 | -10/Subcaves | Build established: Scavenger-Mutant 2320 | -10/Subcaves | Core integrity fell below 20% 2352 | -10/Subcaves | Destroyed by S9-B36(R) with Subdweller Beam Cannon Last Messages --------------- 02011_ JIXYJ# GXZDLSFF4WOAM9DNHKFHFZ21,ZWOR 02023_ Subatomizers dissect the Sub. Optics. 02041_ System corrupted: Energy discharge (-42). 02096_ Sub. Power Source shoots sparks and powers down. 02182_ System corrupted: Substantial component data lost. Sub. Beam Cannon falls loose from the Twisted Machinery. 02238_ System corrupted: Heat flow error (+202). Spk. Treads falls loose from the Twisted Machinery. 02259_ Dropped Lgt. Treads. 02272_ System corrupted: Heat flow error (+117). 02298_ System corrupted: Heat flow error (+206). 02300_ Dropped Broken Sub. Power Source. S9-B36(R) emerges from concealment. 02335_ O0-TZP(R) destroyed. Map ----- +----------------------------------------------------+ | ?????????????????????????????????????????????????? | | ?????????????????????????????????????????????????? | | ?????????????????????????????????????????????????? | | ?????????????????????????????????????????????????? | | ?????????????????????????????????????????????????? | | ?????????????????????????????????????????????????? | | ?????????????????????????????????????????????????? | | ?????????????????????????????????????????????????? | | ?????????????????????????????????????????????????? | | ?????????????????????????????????????????????????? | | ???????????????????????????# ? ??????????????????? | | ??????????????????????????# ?????????????????? | | ?????????????????????????? #?? ??????????????? | | ?????????????????#???????? ## ??????????????? | | ????????????????????????? ?????????????? | | ?????????????????????????? ??????????????? | | ??????#??????????????????? ???????????????? | | ?????????????????????????? #????????????????? | | ????????????????????????## ##???????????????? | | ??????????????????????### #???????????????? | | ???????????###??????### ?? ????????????????? | | ????#??????# ##???## #?? ?????????????????? | | ???#???????# ##### #??? #?????????????????? | | ???##???????# #?# #?? #?????????????????? | | ???# ##?????# ##### ###%]##????????????????? | | ???# ##????# #??# @## ! #????????????????? | | ???# ###### * #### R #????????????????? | | ???# ## R #????????????????? | | ???#### #????????????????? | | ??????## # #### #??? ???????????? | | ???????# ### ##???# #??????????????? | | ???????# ## ###???#? ?????????????? | | ??????## ## ##???????? ???????????? | | ?????## ### ## ##????#???## ?????????? | | ????## " ###?# ##?#???????#?? ????????? | | ???## "=" #???# ##????????????? ### ?????????? | | ???# "" "##??# #####????????? #??? ?????????? | | ???# """" #### ##?????????#?????????????? | | ?#?# "" #?????????????#????#????? | | ???# " ##?#???#????????????????? | | ???# ## """ ####?###??##?#?????????? | | ???# #?## "] ## ### ###????#???#????? | | ???###?### ##### ##????????????? | | ???#??## ####?#?# #### ##????#??#???? | | ??????# ##????## #?### # # # #????#???????? | | ??????#""""##??## ##?##### #### #?????#??????? | | ?????##"""""#?## #??### # # ##????????????? | | ??????#"""" ### #??# ## ##????????????? | | ??????#""" ## #?## # ## # ##???????????? | | ?#????# ### ######## ########????#? | +----------------------------------------------------+ Best States ------------- Heat Dissipation 25 Energy Generation 15 Energy Capacity 250 Matter Stores 300 Matter Capacity 300 Sight Range 16 Robot Scan Range 14 Terrain Scan Range 16 Terrain Scan Density 10 Armor Coverage 800 Evasion (%) 55 Recoil Reduction 2 Item Schematics ----------------- None Robot Schematics ------------------ None Fabricated ------------ Nothing Alien Tech Used ----------------- None Achievements -------------- None Challenges ------------ None Game ------ Seed DisruptionLayeredCorpse Manual? 0 Play Time 00:19:47 Cumulative 97.5 hours Start 2024.05.31 @ 22:01:54 End 2024.05.31 @ 22:18:51 Sessions 1 Manual Loads 0 Difficulty Rogue Special Mode None Game No. 168 Rogue 168 Adventurer 0 Explorer 0 Win Type - Total 1 Types 1/0/0/0/0/0/0/0/0 Lore% 42 Gallery% 47 Achievement% 33 Wizard Run 0 Options --------- Layout 1 ASCII 0 Keyboard 1 Movement Numpad Keybinds 0 Fullscreen 1 Font 24/Smallcaps Map View 50x35 Zoom Use 0% Tactical HUD 1 Map Filters NONE Filters NONE Steam 1 RUN: 2e6cb70d-642f-4f63-ae9a-4c17b51173b5